[Event "53rd Mongolian Women-ch 2023"]
[Site "Khovd"]
[Date "2023.05.22"]
[Round "3.1"]
[White "Bayasgalan, Khishigbaatar"]
[Black "Enkhbolor Nyamdavaa"]
[Result "1-0"]
[ECO "D87"]
[WhiteElo "1811"]
[BlackElo "1699"]
[Annotator "NA COMBH"]
[PlyCount "51"]
[EventDate "2023.05.22"]
[EventType "tourn"]
[EventCountry "MGL"]
[SourceTitle "playchess.com"]
[Source "ChessBase"]
[SourceQuality "1"]
[TimeControl "40/5400+30:1800+30"]

1. d4 {[%emt 0:00:11]} Nf6 {[%emt 0:00:05]} 2. c4 {[%emt 0:00:14]} g6 {[%emt 0:00:05]} 3. Nc3 {[%emt 0:00:10]} d5 {[%emt 0:00:25]} 4. cxd5 {[%emt 0:01:17]} Nxd5 {[%emt 0:00:05]} 5. e4 {[%emt 0:00:19]} Nxc3 {[%emt 0:00:04]} 6. bxc3 {[%emt 0:00:06]} Bg7 {[%emt 0:00:02]} 7. Bc4 {[%emt 0:01:47]} c5 {[%emt 0:00:18]} 8. Ne2 {[%emt 0:00:55]} Nc6 {[%emt 0:00:16]} 9. Be3 {[%emt 0:00:26]} O-O {[%emt 0:00:16]} 10. Rc1 {[%emt 0:01:20]} Na5 {[%emt 0:00:36]} 11. Bd3 {[%emt 0:01:57]} e5 {[%emt 0:00:27]} 12. dxe5 {[%emt 0:05:35]} Qc7 {[%emt 0:00:34]} 13. Nf4 {[%emt 0:05:19]} Bxe5 {[%emt 0:11:48]} 14. Nd5 {[%emt 0:02:02]} Qd6 {[%emt 0:00:41]} 15. f4 {[%emt 0:01:45]} Bg7 {[%emt 0:00:53]} 16. c4 {[%emt 0:05:39]} b6 {[%emt 0:20:41]} 17. e5 {[%emt 0:05:15]} Qd7 {[%emt 0:03:52]} 18. Be4 {[%emt 0:03:30]} Rb8 {[%emt 0:02:16]} 19. O-O {[%emt 0:00:33]} Rd8 {[%emt 0:03:53]} 20. Qe1 {[%emt 0:04:04]} Ba6 {[%emt 0:04:46]} 21. Rd1 {[%emt 0:03:07]} Qa4 {[%emt 0:05:57]} 22. Qh4 {[%emt 0:01:21]} Rxd5 {[%emt 0:04:03]} 23. Bxd5 {[%emt 0:01:14]} Nxc4 {[%emt 0:06:45]} 24. f5 {[%emt 0:05:45]} Nb2 {[%emt 0:08:10]} 25. Bxf7+ {[%emt 0:06:11]} Kh8 {[%emt 0:02:03]} 26. Rd8+ {[%emt 0:00:10]} 1-0

[Event "53rd Mongolian Women-ch 2023"]
[Site "Khovd"]
[Date "2023.05.22"]
[Round "3.2"]
[White "Amin-Erdene, Bayanmunkh"]
[Black "Margadgua Erdenebayar"]
[Result "1/2-1/2"]
[ECO "D11"]
[WhiteElo "1620"]
[BlackElo "1934"]
[Annotator "TA"]
[PlyCount "147"]
[EventDate "2023.05.22"]
[EventType "tourn"]
[EventCountry "MGL"]
[SourceTitle "playchess.com"]
[Source "ChessBase"]
[SourceQuality "1"]
[TimeControl "40/5400+30:1800+30"]

{[%evp 9,147,24,28,0,0,0,0,0,0,-7,0,0,33,23,34,29,31,4,13,-31,-27,-31,-29,-35,-38,-43,-25,-28,-28,-35,-27,-42,12,-73,0,-10,0,-75,-76,-76,-77,-91,-79,-94,-56,-54,-37,-140,-102,-133,-64,-140,-140,-140,-140,-140,-133,-140,-140,-135,-140,-140,-132,-360,-370,-371,-369,-324,-214,-204,-204,-236,-208,-345,-221,-238,0,-338,-195,-337,-337,-296,-234,-277,-269,-354,-358,-425,-426,-478,-318,-337,-310,-362,0,-414,-402,-403,-357,-395,-351,-297,-210,-456,-311,-283,-278,-332,-325,-312,-279,-271,-122,-105,-104,-101,0,0,0,0,0,0,0,0,0,-242,-225,-246,0,0,0,0,0,0,0,0,0,0,0,0]} 1. d4 {[%emt 0:00:04]} d5 {[%emt 0:00:06]} 2. c4 {[%emt 0:00:08]} c6 {[%emt 0:00:05]} 3. Nf3 {[%emt 0:00:06]} Nf6 {[%emt 0:00:10]} 4. g3 {[%emt 0:00:13]} Bg4 {[%emt 0:00:08]} 5. Ne5 {[%emt 0:00:23]} Bf5 {[%emt 0:03:00]} 6. Nc3 {[%emt 0:06:27] D11: Slav Defence: 3 Nf3 sidelines and 3...Nf6 4 e3 Bg4.} e6 {[%emt 0:04:05]} 7. Qb3 {[%emt 0:04:35]} Qb6 {[%emt 0:04:22]} 8. c5 {[%emt 0:00:55]} Qxb3 {[%emt 0:00:08]} 9. axb3 {[%emt 0:00:05][%cal Ba2b3,Bb3b4][%mdl 32]} Nbd7 {[%emt 0:00:26]} 10. Nf3 {[%emt 0:15:53] [#]} Be4 $146 {[%emt 0:19:33]} ({Predecessor:} 10... a6 11. h3 h6 12. b4 Rc8 13. g4 Bh7 14. Bf4 g5 15. Bh2 Bg7 16. Nd2 Ne4 17. Ndxe4 dxe4 {½-½ Kanyamarala,T (2379)-Wageih,K (2387) Olympiad-44 Chennai 2022 (7.4)}) 11. Nxe4 {[%emt 0:10:47]} Nxe4 {[%emt 0:02:15]} 12. b4 {[%emt 0:02:20][%cal Ob4b5]} a6 {[%emt 0:09:59]} 13. Bh3 {[%emt 0:11:26]} Be7 {[%emt 0:02:46]} 14. O-O {[%emt 0:01:22]} h5 {[%emt 0:07:24]} 15. Rd1 {[%emt 0:19:43]} g5 {[%emt 0:05:39]} 16. Bf1 {[%emt 0:03:00]} f5 {[%emt 0:03:36]} 17. Ne1 {[%emt 0:02:24]} Rg8 {[%emt 0:06:55]} 18. f3 {[%emt 0:03:17]} Nef6 {[%emt 0:00:06]} 19. Nd3 {[%emt 0:00:31]} Kf7 {[%emt 0:04:43]} 20. Bd2 {[%emt 0:01:21]} Rg7 {[%emt 0:02:18]} (20... Bd8 $15) 21. Bc3 {[%emt 0:02:02] [#]} (21. b5 $11) 21... Rag8 {[%emt 0:02:07]} (21... g4 $1 $17) 22. Kf2 $11 {[%emt 0:02:00]} h4 {[%emt 0:06:09]} 23. Bg2 {[%emt 0:05:05]} (23. Ne5+ $11 Ke8 24. b5 axb5 25. Ra8+ Bd8 26. Rda1) 23... g4 $17 {[%emt 0:02:09]} 24. f4 {[%emt 0:01:37]} Rh7 {[%emt 0:00:10]} 25. Rg1 {[%emt 0:04:06]} Nh5 {[%emt 0:01:10]} 26. Bf1 {[%emt 0:01:10]} Ndf6 {[%emt 0:03:24]} 27. Ne5+ {[%emt 0:00:22]} Ke8 {[%emt 0:00:02]} 28. Ke3 {[%emt 0:00:31]} (28. gxh4 $2 {too greedy.} Ne4+ 29. Ke3 Bxh4 $19) (28. Bg2 $15) 28... Ne4 {[%emt 0:00:39][%cal Rh4g3]} 29. Be1 {[%emt 0:00:15]} Bf6 {[%emt 0:00:01]} (29... hxg3 $17 30. hxg3 Bf6) 30. Kd3 {[%emt 0:01:26]} (30. gxh4 $15 Bxe5 31. fxe5) 30... Bxe5 {[%emt 0:05:44]} 31. dxe5 {[%emt 0:00:10]} hxg3 {[%emt 0:00:07]} 32. hxg3 {[%emt 0:00:05]} Kf7 {[%emt 0:00:27]} 33. Kc2 {[%emt 0:00:48]} Rb8 {[%emt 0:02:32]} 34. Ra3 {[%emt 0:00:47]} Ng7 {[%emt 0:01:01][%cal Bh5g7,Bg7e8,Be8c7][%mdl 32]} 35. Bg2 {[%emt 0:01:07]} Ne8 {[%emt 0:00:25]} 36. Rh1 $2 {[%emt 0:00:49]} (36. Rd3 $17 {was called for.}) 36... Rxh1 $19 {[%emt 0:00:21]} 37. Bxh1 {[%emt 0:00:00]} Nc7 {[%emt 0:00:02]} 38. Bxe4 {[%emt 0:00:50]} dxe4 {[%emt 0:00:18][%mdl 4096] Endgame KRB-KRN} 39. Ra1 {[%emt 0:00:30]} Rh8 {[%emt 0:00:32]} 40. Kd1 {[%emt 0:00:00]} Rh1 {[%emt 0:00:00]} 41. Kc2 {[%emt 0:19:27]} (41. Rc1 $142) 41... Rh2 {[%emt 0:14:37]} 42. Kd1 {[%emt 0:03:18]} Rh1 {[%emt 0:00:33]} (42... Nd5 $142 {Hoping for ...Ne3+.} 43. Ra3 Ke7) 43. Kc2 {[%emt 0:00:29]} Ke7 {[%emt 0:01:14]} (43... Nd5 $142 44. Rc1 Ne3+ 45. Kb3 Rh2) 44. Rd1 {[%emt 0:04:21]} (44. Kd2 $142) 44... Nd5 {[%emt 0:05:55]} 45. Kd2 {[%emt 0:02:38] Inhibits Ne3.} Nxb4 {[%emt 0:03:23]} 46. Bf2 {[%emt 0:00:52]} Rh2 {[%emt 0:02:25]} 47. Rf1 {[%emt 0:00:44]} Nd5 {[%emt 0:00:12][%cal Oh2f2] [#] Threatens to win with ...Rxf2!} 48. Be1 {[%emt 0:00:37]} Kd7 {[%emt 0:01:09]} 49. Rg1 {[%emt 0:00:24]} Nc7 {[%emt 0:01:21]} 50. Kd1 {[%emt 0:00:42]} Nb5 {[%emt 0:01:13]} 51. Bd2 {[%emt 0:00:56]} Nc7 $2 {[%emt 0:00:54]} (51... Nd4 $19 52. Re1 Nb3) 52. Re1 {[%emt 0:01:22][%mdl 8192]} (52. Be1 $1 $11 {and White has nothing to worry.}) 52... Nd5 {[%emt 0:01:17]} 53. Rg1 {[%emt 0:00:55]} Kc8 {[%emt 0:00:36]} 54. Ke1 {[%emt 0:01:10]} Kb8 {[%emt 0:00:43]} 55. Ba5 {[%emt 0:00:25]} Ka7 {[%emt 0:00:47]} 56. Bd8 $2 {[%emt 0:00:16]} (56. Kd2) 56... b6 {[%emt 0:01:27]} 57. cxb6+ {[%emt 0:00:01]} Nxb6 {[%emt 0:00:02]} 58. Bxb6+ {[%emt 0:01:31]} Kxb6 {[%emt 0:00:01] KR-KR} 59. Kd2 {[%emt 0:00:00]} Kb5 {[%emt 0:01:13]} 60. Ke3 {[%emt 0:00:17]} a5 {[%emt 0:02:47]} (60... Rh3 $19 {and Black stays clearly on top. Strongly threatening ...a5.} 61. Kf2 Rh2+ 62. Ke3 Rh3) 61. Rd1 $17 {[%emt 0:00:23]} Rh8 {[%emt 0:01:26] ...Rb8 is the strong threat.} 62. Rd6 {[%emt 0:00:23]} Re8 {[%emt 0:00:01]} ({Better is} 62... Rh6 $17 63. b3 Kb4 64. Rxc6 Kxb3 65. Rb6+ Kc4) 63. Kd4 $11 {[%emt 0:00:13]} c5+ {[%emt 0:01:41]} 64. Kc3 {[%emt 0:00:08]} Re7 {[%emt 0:00:47]} 65. Kb3 {[%emt 0:00:51]} Re8 {[%emt 0:00:57]} 66. Kc3 {[%emt 0:00:02]} a4 {[%emt 0:00:47]} 67. e3 $2 {[%emt 0:00:30]} (67. Rd7 $11) 67... Re7 $19 {[%emt 0:00:16]} 68. Rd8 {[%emt 0:00:49]} Rb7 $2 {[%emt 0:00:03] Against Rb8} ({Black should play} 68... Rh7 $19 {...Rh2 would be deadly.} 69. Rb8+ Kc6) 69. Re8 $1 $11 {[%emt 0:00:30] The position is equal.} Rb6 {[%emt 0:00:01]} 70. Re7 {[%emt 0:00:19]} Rc6 {[%emt 0:01:34]} 71. Re8 {[%emt 0:00:10]} Rb6 {[%emt 0:00:12]} 72. Re7 {[%emt 0:00:02]} Ra6 {[%emt 0:00:04] And now ...a3 would win.} 73. Rb7+ $1 {[%emt 0:01:02]} Rb6 {[%emt 0:01:16]} 74. Re7 {[%emt 0:00:01] Weighted Error Value: White=0.45/Black=0.37} 1/2-1/2

[Event "53rd Mongolian Women-ch 2023"]
[Site "Khovd"]
[Date "2023.05.22"]
[Round "3.4"]
[White "Bayarmaa, Bayarjargal"]
[Black "Enkhsaran, Batsaikhan"]
[Result "0-1"]
[ECO "D23"]
[WhiteElo "2167"]
[BlackElo "1756"]
[Annotator "TA"]
[PlyCount "104"]
[EventDate "2023.05.22"]
[EventType "tourn"]
[EventCountry "MGL"]
[SourceTitle "playchess.com"]
[Source "ChessBase"]
[SourceQuality "1"]
[TimeControl "40/5400+30:1800+30"]

{[%evp 19,104,18,19,8,26,9,66,47,104,78,79,61,165,179,172,168,145,68,75,71,80,72,69,55,73,48,73,0,10,-108,-105,-107,-97,-293,-293,-293,-293,-293,-293,-293,-293,-293,-293,-284,-293,-338,-338,-337,-337,-435,-411,-603,-600,-591,-562,-554,-518,-562,-547,-525,-518,-889,-872,-29953,-29965,-29964,-29964,-29973,-29973,-29977,-29978,-29981,-29982,-29982,-29983,-29983,-29984,-29984,-29984,-29985,-29986,-29986,-29985,-29990,-29991,-29991,-29992]} 1. d4 {[%emt 0:00:16]} d5 {[%emt 0:00:14]} 2. c4 {[%emt 0:00:06]} c6 {[%emt 0:00:09]} 3. Nf3 {[%emt 0:00:07]} Nf6 {[%emt 0:00:11]} 4. Qc2 {[%emt 0:00:20]} dxc4 {[%emt 0:05:17]} 5. Qxc4 {[%emt 0:00:16]} Bf5 {[%emt 0:00:55]} 6. g3 {[%emt 0:00:21]} Nbd7 {[%emt 0:01:17]} 7. Nc3 {[%emt 0:00:48]} e6 {[%emt 0:02:33]} 8. Bg2 {[%emt 0:00:11]} h6 {[%emt 0:06:57]} 9. O-O {[%emt 0:02:47]} Be7 {[%emt 0:02:09]} 10. e3 {[%emt 0:02:24][%cal Be2e3,Be3e4,Be4e5][%mdl 32]} O-O {[%emt 0:02:04]} 11. Rd1 {[%emt 0:00:40] D23: Queen's Gambit Accepted: 3 Nf3 Nf6 sidelines.} Rc8 {[%emt 0:02:30]} 12. Qe2 {[%emt 0:02:04]} (12. Ne5 {with more complications.} b5 13. Qe2 b4 14. e4) 12... Bh7 {[%emt 0:06:26]} ({Better is} 12... Ne4 $11) 13. e4 $14 {[%emt 0:04:30] [#] White is slightly better.} c5 $146 {[%emt 0:03:19]} ({Black should play} 13... Bg6 $14) ({Predecessor:} 13... a6 14. a3 b5 15. Bd2 Qb6 16. b4 Rfd8 17. h3 Qb7 18. Bf4 Nb6 19. Ne5 Nfd7 {1-0 Donchenko,A (2636)-Bok,B (2624) Chess.com Rapid Wk6 Swiss 2022 (6)}) 14. d5 {[%emt 0:01:34]} exd5 {[%emt 0:04:51] Hoping for ...d4.} 15. e5 {[%emt 0:05:55]} (15. Nxd5 Nxd5 16. Rxd5 Qe8 $14) (15. exd5 Bd6 $11) 15... Ne4 {[%emt 0:07:13]} (15... Re8 $14) 16. Nxd5 $18 {[%emt 0:02:37]} c4 {[%emt 0:04:29]} 17. Be3 {[%emt 0:06:04] Strongly threatening Bh3.} Bc5 {[%emt 0:06:54]} 18. Bxc5 {[%emt 0:01:16]} ({Worse is} 18. Qxc4 Nxf2 19. Bxc5 Nxd1 20. Ne7+ Kh8 21. Nxc8 Nxb2 $15) (18. Bh3 $16 {Nf4 is the strong threat.} Re8 19. a4 (19. Qxc4 $2 {too greedy.} Bxe3 20. Qb3 Bxf2+ 21. Kg2 Ndc5 $19)) 18... Nexc5 $14 {[%emt 0:01:12][%cal Be4c5,Bc5e6,Be6d4,Bd4c2][%mdl 32]} 19. Qxc4 {[%emt 0:00:46] b4 would be deadly.} Nb6 {[%emt 0:03:53]} 20. Nxb6 {[%emt 0:09:25]} Qxb6 {[%emt 0:00:13]} 21. Qe2 {[%emt 0:01:23]} Rfd8 {[%emt 0:04:16] Against Rd6} 22. Ne1 {[%emt 0:08:13]} Ne6 {[%emt 0:09:55]} 23. b3 {[%emt 0:07:14]} (23. Bh3 $1 $16) 23... Nd4 $11 {[%emt 0:02:22]} 24. Qb2 {[%emt 0:03:33] [#]} (24. Qf1 $11) 24... Nc2 $1 $36 {[%emt 0:02:19][%mdl 2048] Black is really pushing. Black is more active.} 25. Rxd8+ {[%emt 0:18:31]} Qxd8 {[%emt 0:00:23]} 26. Rc1 {[%emt 0:00:49]} (26. Nxc2 $17 Rxc2 27. Qb1) 26... Nxe1 $19 {[%emt 0:00:26][%mdl 64] Deflection} 27. Rxe1 {[%emt 0:04:23][%cal Oe5e6]} Rc2 {[%emt 0:00:38] ( -> ...Qd2)} 28. Qa3 {[%emt 0:00:27] [#]} Qd4 {[%emt 0:01:37]} (28... Qd2 29. Rf1 $16) 29. Rf1 {[%emt 0:07:57]} Bd3 {[%emt 0:00:29]} (29... Qxe5 30. Qxa7 Bd3 31. Rd1 $11) 30. Qd6 {[%emt 0:01:41]} Qxd6 {[%emt 0:00:09]} 31. exd6 {[%emt 0:00:05] Black must now prevent d7.} Bxf1 {[%emt 0:00:09]} (31... Rxa2 $2 32. d7 Kh7 33. d8=Q $18 (33. d8=B Bxf1 34. Bxf1 g5 $16)) 32. Kxf1 {[%emt 0:00:10]} Rxa2 {[%emt 0:00:22]} 33. Bxb7 {[%emt 0:04:01][%mdl 4096] Endgame KR-KB} Rd2 {[%emt 0:00:10]} 34. Ba6 {[%emt 0:00:33]} Rxd6 {[%emt 0:00:08]} 35. Bc4 {[%emt 0:00:07]} (35. Be2 $142) 35... Rd2 {[%emt 0:00:35]} 36. Kg2 {[%emt 0:00:29]} Kf8 {[%emt 0:00:30]} 37. Kf3 {[%emt 0:00:08]} Ke7 {[%emt 0:00:27]} 38. h4 {[%emt 0:00:37]} f6 {[%emt 0:00:32]} 39. Ke3 {[%emt 0:01:33]} Rb2 {[%emt 0:00:27]} 40. h5 {[%emt 0:00:00]} (40. f3 $142 Rg2 41. g4) 40... Kd6 {[%emt 0:00:00] And now ...Kc5 would win.} 41. f3 {[%emt 0:03:38]} Kc5 {[%emt 0:05:03] Black mates.} 42. Ke4 {[%emt 0:01:08]} a5 {[%emt 0:00:33]} 43. Bf7 {[%emt 0:02:04]} Kb4 {[%emt 0:00:18]} 44. Kf5 {[%emt 0:00:06]} Rxb3 {[%emt 0:00:25]} 45. Bxb3 {[%emt 0:01:58]} Kxb3 {[%emt 0:00:06] KP-KP} 46. Kg6 {[%emt 0:00:06]} a4 {[%emt 0:00:06]} 47. Kxg7 {[%emt 0:00:05]} a3 {[%emt 0:00:06]} 48. Kxh6 {[%emt 0:00:05]} a2 {[%emt 0:00:08]} 49. Kh7 {[%emt 0:02:50]} a1=Q {[%emt 0:00:09]} (49... a1=B 50. Kg6 f5 51. Kxf5 $18) 50. h6 {[%emt 0:00:03]} f5 {[%emt 0:01:56]} 51. g4 {[%emt 0:00:43]} fxg4 {[%emt 0:00:29]} 52. fxg4 {[%emt 0:00:08]} Qf6 {[%emt 0:00:19] Quite a comeback for Black.   Weighted Error Value: White=0.45/Black=0.08 (flawless)} 0-1

[Event "53rd Mongolian Women-ch 2023"]
[Site "Khovd"]
[Date "2023.05.22"]
[Round "3.5"]
[White "Altantuya, Boldbaatar"]
[Black "Mungunzul, Bat-Erdene"]
[Result "1/2-1/2"]
[ECO "D15"]
[WhiteElo "2191"]
[BlackElo "2299"]
[Annotator "TA"]
[PlyCount "108"]
[EventDate "2023.05.22"]
[EventType "tourn"]
[EventCountry "MGL"]
[SourceTitle "playchess.com"]
[Source "ChessBase"]
[SourceQuality "1"]
[TimeControl "40/5400+30:1800+30"]

{[%evp 10,108,36,22,22,16,54,54,59,65,65,64,58,26,28,22,14,17,24,31,16,0,43,45,58,50,34,33,35,39,81,60,126,43,38,46,48,38,47,0,19,19,114,102,74,73,96,0,0,0,0,0,28,8,67,58,64,59,56,63,111,103,123,90,93,79,83,25,40,10,10,7,3,3,6,4,18,19,15,8,8,8,8,8,8,8,8,0,25,22,32,22,22,20,22,14,22,8,8,8,8]} 1. d4 {[%emt 0:00:20]} d5 {[%emt 0:00:07]} 2. c4 {[%emt 0:00:10]} c6 {[%emt 0:00:14]} 3. Nc3 {[%emt 0:00:13]} Nf6 {[%emt 0:00:16]} 4. e3 {[%emt 0:00:14]} a6 {[%emt 0:00:23]} 5. Nf3 {[%emt 0:00:27]} Bf5 {[%emt 0:00:25]} 6. Qb3 {[%emt 0:00:22]} Ra7 {[%emt 0:00:45] D15: Slav Defence: 4 Nc3 a6 and gambit lines after 4 Nc3 dxc4.} 7. Nh4 {[%emt 0:00:52]} Be4 {[%emt 0:14:40]} 8. f3 {[%emt 0:03:55]} Bg6 {[%emt 0:00:15] White is slightly better.} 9. Nxg6 {[%emt 0:04:28]} hxg6 {[%emt 0:00:48]} 10. Bd2 {[%emt 0:04:57]} e6 {[%emt 0:01:53]} 11. O-O-O {[%emt 0:03:32]} dxc4 {[%emt 0:06:09]} 12. Bxc4 {[%emt 0:02:07]} b5 {[%emt 0:00:16]} 13. Be2 {[%emt 0:01:31]} c5 {[%emt 0:04:47]} 14. dxc5 {[%emt 0:07:15]} Bxc5 {[%emt 0:01:39]} 15. Kb1 {[%emt 0:08:00][%cal Oc3b5] Nxb5! would be deadly.} Qb6 {[%emt 0:03:46]} (15... Rd7 $5 {[%cal Rd7d2]} 16. Qc2 O-O $11) 16. g4 {[%emt 0:03:05][%cal Bg2g4,Bg4g5][%mdl 32] [#]} Rd7 $146 {[%emt 0:09:26]} ({Predecessor:} 16... O-O 17. g5 Nd5 18. Nxd5 exd5 19. h4 Re8 20. h5 gxh5 21. Rxh5 Qg6+ 22. Qc2 Qxh5 23. Qxc5 {0-1 Lashkin,J (2399)-Le,T (2514) Titled Tuesday intern op 14th Jun Early blitz 2022 (8)}) 17. g5 {[%emt 0:14:14]} Nd5 {[%emt 0:01:09]} 18. Nxd5 {[%emt 0:04:42]} Rxd5 {[%emt 0:01:31]} 19. f4 {[%emt 0:00:33]} b4 {[%emt 0:10:44]} 20. h4 {[%emt 0:10:30]} Ke7 {[%emt 0:01:40]} (20... Nc6 $14) 21. Bf3 {[%emt 0:04:50]} ({Better is} 21. e4 $16 Rd4 22. f5) 21... Rd6 $14 {[%emt 0:01:36]} 22. h5 {[%emt 0:04:14]} gxh5 {[%emt 0:01:02]} 23. g6 {[%emt 0:00:39] [#] And now gxf7 would win.} f6 {[%emt 0:03:48]} 24. Bxh5 {[%emt 0:03:12]} (24. e4 $1 $14 Qb5 25. e5 (25. Bxh5 Qd3+ 26. Qxd3 Rxd3 $11) (25. Rxh5 Rxh5 26. Bxh5 Qd3+ 27. Qc2 Qxc2+ 28. Kxc2 Nc6 $11)) 24... a5 {[%emt 0:06:15]} (24... Nc6 $5 {[%cal Rc6a5]}) 25. e4 {[%emt 0:02:23] Threatens to win with e5.} Rhd8 {[%emt 0:02:27]} (25... Qc6 $11 26. Qc2 Be3 27. Qxc6 (27. Bxe3 Rxd1+ 28. Rxd1 Qxc2+ 29. Kxc2 Rxh5 $11) 27... Nxc6 28. Bxe3 Rxd1+ 29. Rxd1 Rxh5) 26. Bc1 $16 {[%emt 0:01:40] e5 is the strong threat.} Qc6 {[%emt 0:00:45] [#]} 27. Qc2 {[%emt 0:02:26]} Bb6 {[%emt 0:05:25]} 28. e5 {[%emt 0:04:00]} (28. Qg2 $16) 28... Rxd1 {[%emt 0:00:49]} 29. Qxc6 {[%emt 0:00:17]} Nxc6 {[%emt 0:00:18]} 30. Bxd1 {[%emt 0:00:05]} Bd4 {[%emt 0:01:07]} 31. Bf3 {[%emt 0:01:31]} Nb8 {[%emt 0:01:06]} (31... Rc8 $11) 32. Rh7 $14 {[%emt 0:02:27]} Rg8 {[%emt 0:00:51]} 33. exf6+ {[%emt 0:00:27]} Kxf6 {[%emt 0:01:17]} 34. Rh5 {[%emt 0:00:35]} a4 {[%emt 0:06:00]} (34... Nd7 $14 {might be stronger.}) 35. Ra5 $16 {[%emt 0:02:02]} a3 {[%emt 0:01:02]} 36. bxa3 {[%emt 0:00:19]} bxa3 {[%emt 0:00:03]} 37. Bxa3 {[%emt 0:01:07]} Kxg6 {[%emt 0:00:40]} 38. Be7 {[%emt 0:03:13] White is more active. This pair of bishops is nice.} ({White should play} 38. Ra8 $16 {aiming for Bd6.} Rd8 39. Be7) 38... Kf7 {[%emt 0:01:22]} 39. Bg5 {[%emt 0:00:33]} Nd7 {[%emt 0:00:43]} 40. Ra4 {[%emt 0:00:00]} Rb8+ {[%emt 0:00:00]} 41. Kc2 {[%emt 0:03:42]} Rc8+ {[%emt 0:02:54]} 42. Kd2 {[%emt 0:01:39]} Bb6 {[%emt 0:01:31]} 43. Ra6 {[%emt 0:06:16]} Rb8 {[%emt 0:01:09]} 44. Ra8 {[%emt 0:08:57]} Rxa8 {[%emt 0:10:29]} 45. Bxa8 $11 {[%emt 0:00:08][%mdl 4096] Endgame KBB-KBN} Kg6 {[%emt 0:00:05]} 46. Be4+ {[%emt 0:02:07]} Kh5 {[%emt 0:00:37]} 47. Bf3+ {[%emt 0:03:22]} Kg6 {[%emt 0:00:09]} 48. Be4+ {[%emt 0:00:04]} Kf7 {[%emt 0:01:31]} 49. Ke2 {[%emt 0:00:16]} Nc5 {[%emt 0:01:47]} 50. Bc6 {[%emt 0:00:10]} Kg6 {[%emt 0:00:41] The position is equal.} 51. Kf3 {[%emt 0:01:08]} Kf5 {[%emt 0:00:29]} 52. Be7 {[%emt 0:01:14]} e5 {[%emt 0:00:08]} 53. Bxc5 {[%emt 0:01:20]} Bxc5 {[%emt 0:00:03]} 54. fxe5 {[%emt 0:00:05]} Kxe5 {[%emt 0:28:28] Weighted Error Value: White=0.11 (very precise) /Black=0.14 (very precise)} 1/2-1/2

[Event "53rd Mongolian Women-ch 2023"]
[Site "Khovd"]
[Date "2023.05.22"]
[Round "3.6"]
[White "Enkhrii Enkh-Amgalan"]
[Black "Khuslen, Erdenebayar"]
[Result "1-0"]
[ECO "B46"]
[WhiteElo "1448"]
[BlackElo "1835"]
[Annotator "NA COMBH"]
[PlyCount "75"]
[EventDate "2023.05.22"]
[EventType "tourn"]
[EventCountry "MGL"]
[SourceTitle "playchess.com"]
[Source "ChessBase"]
[SourceQuality "1"]
[TimeControl "40/5400+30:1800+30"]

1. e4 {[%emt 0:00:02]} c5 {[%emt 0:00:18]} 2. Nf3 {[%emt 0:00:05]} e6 {[%emt 0:01:12]} 3. d4 {[%emt 0:00:07]} cxd4 {[%emt 0:00:21]} 4. Nxd4 {[%emt 0:00:05]} Nc6 {[%emt 0:01:15]} 5. Nc3 {[%emt 0:00:07]} a6 {[%emt 0:00:47]} 6. Nxc6 {[%emt 0:00:36]} bxc6 {[%emt 0:00:20]} 7. Bd3 {[%emt 0:00:06]} d5 {[%emt 0:01:20]} 8. O-O {[%emt 0:00:07]} Nf6 {[%emt 0:00:51]} 9. e5 {[%emt 0:00:16]} Nd7 {[%emt 0:00:20]} 10. Re1 {[%emt 0:00:09]} Be7 {[%emt 0:03:06]} 11. Qg4 {[%emt 0:00:29]} Kf8 {[%emt 0:02:30]} 12. Bd2 {[%emt 0:04:42]} h5 {[%emt 0:07:57]} 13. Qf3 {[%emt 0:00:12]} Kg8 {[%emt 0:01:48]} 14. Na4 {[%emt 0:02:00]} Qc7 {[%emt 0:04:21]} 15. Qe2 {[%emt 0:13:36]} c5 {[%emt 0:15:08]} 16. c4 {[%emt 0:04:39]} d4 {[%emt 0:04:30]} 17. f4 {[%emt 0:08:57]} g6 {[%emt 0:03:15]} 18. b3 {[%emt 0:15:02]} Bb7 {[%emt 0:04:57]} 19. Rf1 {[%emt 0:02:58]} a5 {[%emt 0:11:06]} 20. Nb2 {[%emt 0:07:49]} Kg7 {[%emt 0:04:52]} 21. Rae1 {[%emt 0:01:29]} Nb6 {[%emt 0:00:52]} 22. a4 {[%emt 0:05:45]} Bh4 {[%emt 0:03:15]} 23. Rb1 {[%emt 0:01:23]} Nd7 {[%emt 0:02:06]} 24. Nd1 {[%emt 0:02:40]} Ra6 {[%emt 0:03:23]} 25. Nf2 {[%emt 0:03:28]} Bxf2+ {[%emt 0:01:15]} 26. Rxf2 {[%emt 0:00:28]} Rb8 {[%emt 0:00:44]} 27. Re1 {[%emt 0:01:19]} Ba8 {[%emt 0:05:02]} 28. Bc2 {[%emt 0:00:39]} Rh8 {[%emt 0:05:59]} 29. Qd3 {[%emt 0:02:20]} h4 {[%emt 0:00:39]} 30. Qh3 {[%emt 0:01:00]} Nb8 {[%emt 0:02:41]} 31. Qg4 {[%emt 0:06:31]} h3 {[%emt 0:01:47]} 32. f5 {[%emt 0:00:42]} exf5 {[%emt 0:02:24]} 33. Bxf5 {[%emt 0:01:13]} hxg2 {[%emt 0:03:29]} 34. Bf4 {[%emt 0:01:00]} Kf8 {[%emt 0:01:29]} 35. e6 {[%emt 0:02:18]} gxf5 {[%emt 0:00:24]} 36. Qxf5 {[%emt 0:00:06]} Qe7 {[%emt 0:01:23]} 37. Bg5 {[%emt 0:00:15]} Qc7 {[%emt 0:00:39]} 38. e7+ {[%emt 0:00:09]} 1-0